Cogmind - Beta 11.1 @@@ ROGUE MODE // 2022.05.23 @ 17:32:05 Player: DDRAGON Result: Smashed by cave-in Performance ------------- Evolutions (2) 1000 Regions Visited (6) 1200 Robots Destroyed (39) 195 Value Destroyed (932) 932 Prototype IDs (10) 200 Alien Tech Used (0) 0 Bonus (342) 342 TOTAL SCORE: 3869 Bonus ------- Follower Combat Kills 42 Aligned with FarCom 300 Cogmind --------- Core Integrity 0/550 Matter 289/300 Energy 100/100 System Corruption 12% Temperature Cool (0) Movement Flying (29) Location -8/Storage Parts ------- > --- POWER (1) -------- (None) > --- PROPULSION (3) --- Improved VTOL Module Improved VTOL Module Improved VTOL Module > --- UTILITY (4) ------ Improved Signal Interpreter > --- WEAPON (3) ------- Heavy Particle Gun Rocket Launcher Katana > --- INVENTORY (5) ---- Reinforced Ion Engine Improved VTOL Module Improved VTOL Module Improved VTOL Module Advanced Beam Cannon Peak State ------------ > --- POWER ------------ Light Nuclear Core > --- PROPULSION ------- Improved VTOL Module Improved VTOL Module Improved VTOL Module > --- UTILITY ---------- Medium Storage Unit Improved Signal Interpreter Melee Analysis Suite Insulated Plating > --- WEAPON ----------- Rocket Launcher Katana > --- INVENTORY -------- Reinforced Ion Engine Light Treads Aluminum Leg Improved Aluminum Leg Carbon-fiber Leg Improved VTOL Module Improved VTOL Module Improved VTOL Module Particle Cannon [Rating: 32] Favorites ----------- Power Light Nuclear Core Engine Ion Engine Power Core Light Nuclear Core Propulsion Light Treads Treads Light Treads Leg Aluminum Leg Flight Unit Improved VTOL Module Utility Large Storage Unit Device Cloak of Protection Storage Large Storage Unit Processor Signal Interpreter Protection Hardened Light Armor Plating Weapon Particle Cannon Energy Gun Medium Laser Energy Cannon Particle Cannon Ballistic Gun Light Assault Rifle Launcher Rocket Launcher Slashing Weapon Katana Build | -11 -10 -10 -10 -9 -8 -8 ------- Run | Scr Mat Min Exi Min Mat Sto Slots Evolved 4 | . . . . . 4 . Power . | . . . . . . . Propulsion 1 | . . . . . 1 . Utility 2 | . . . . . 2 . Weapon 1 | . . . . . 1 . Parts Attached 54 | 7 10 . 3 . 10 24 Power 9 | 2 2 . . . 3 2 Engine 5 | 2 1 . . . 1 1 Core 4 | . 1 . . . 2 1 Reactor . | . . . . . . . Propulsion 14 | 2 2 . . . 2 8 Treads 6 | . 2 . . . 2 2 Leg 5 | 2 . . . . . 3 Wheel . | . . . . . . . Hover . | . . . . . . . Flight 3 | . . . . . . 3 Utility 18 | 1 4 . 3 . 4 6 Device 7 | . 1 . 3 . 2 1 Storage 4 | 1 2 . . . . 1 Processor 3 | . 1 . . . . 2 Hackware . | . . . . . . . Protection 4 | . . . . . 2 2 Artifact . | . . . . . . . Weapon 13 | 2 2 . . . 1 8 Energy Gun 3 | 1 . . . . . 2 Energy Cannon 6 | . 2 . . . 1 3 Ballistic Gun 1 | 1 . . . . . . Ballistic Cannon . | . . . . . . . Launcher 2 | . . . . . . 2 Special Weapon . | . . . . . . . Impact Weapon . | . . . . . . . Slashing Weapon 1 | . . . . . . 1 Piercing Weapon . | . . . . . . . Special Melee Weapon . | . . . . . . . Unidentified Prototypes 6 | . . . 2 . 1 3 Parts Lost 8 | . . . . . . 8 Power 1 | . . . . . . 1 Propulsion 1 | . . . . . . 1 Utility 5 | . . . . . . 5 Weapon 1 | . . . . . . 1 Highest Loss Streak 6 | . . . . . . 6 To Critical Strikes 1 | . . . . . . 1 Average Slot Usage (%) 98 | . 98 100 100 100 99 90 Engine 3 | . 10 . . . 2 5 Core 9 | . 3 14 14 14 6 3 Treads 25 | . 22 28 28 28 27 17 Leg 1 | . 5 . . . . 4 Device 7 | . . . 7 14 18 4 Storage 12 | . 14 14 14 14 9 6 Processor 6 | . 11 14 6 . . 5 Protection 2 | . . . . . 8 13 Energy Gun 2 | . 10 . . . . . Energy Cannon 22 | . 6 28 28 28 26 17 Ballistic Gun 2 | . 10 . . . . . Naked Turns . | . . . . . . . Heaviest Build 56 | 13 33 33 41 41 56 51 Greatest Support 60 | 20 40 40 40 40 60 60 Greatest Overweight (x) 7 | . . . 1 1 . 7 Average Overweight (x) . | . . . . 1 . . Largest Inventory Capacity 15 | 8 15 15 15 15 15 15 Average Capacity 14 | 6 13 15 15 15 15 11 Most Carried 15 | 3 15 15 15 15 15 15 Average Carried 13 | 2 10 14 14 15 13 10 Final Capacity 15 | 8 15 15 15 15 15 5 Final Carried 15 | 3 15 15 15 15 14 5 Class Distribution -------------------- 78% | Mutant 14% | Skirmisher Dominant Class ---------------- Mutant | -10/Materials Mutant | -10/Mines Mutant | -10/Exiles Mutant | -9/Mines Skirmisher | -8/Materials Mutant | -8/Storage Resources | -11 -10 -10 -10 -9 -8 -8 ----------- Run | Scr Mat Min Exi Min Mat Sto Matter Collected 924 | 232 177 . . 24 87 404 Remotely . | . . . . . . . Salvage Created 1233 | . 511 79 . 58 172 413 Parts 83 | . 29 8 . 10 12 24 Haulers Intercepted 1 | . 1 . . . . . Recyclers Shooed 2 | . 1 . . . 1 . Parts Field Recycled . | . . . . . . . Retrieved Matter . | . . . . . . . Parts Self-Destructed . | . . . . . . . Prevented . | . . . . . . . Kills | -11 -10 -10 -10 -9 -8 -8 ------- Run | Scr Mat Min Exi Min Mat Sto Combat Hostiles Destroyed 28 | . 8 3 . 3 5 9 Guns 8 | . 8 . . . . . Cannons 16 | . . 3 . 3 4 6 AOE 2 | . . . . . . 2 Classes Destroyed 11 | . 4 1 . 2 2 2 Worker 2 | . . . . 1 . 1 Builder 3 | . . . . 1 . 2 Hauler 1 | . 1 . . . . . Recycler 1 | . 1 . . . . . Watcher 4 | . 3 . . . 1 . Swarmer 11 | . . 2 . 3 3 3 Grunt 12 | . 8 1 . . . 3 Brawler 1 | . . . . . . 1 Duelist 1 | . . . . . . 1 Sentry 2 | . . . . . 1 1 Hunter 1 | . . . . . 1 . Best Kill Streak 4 | . 3 2 . 3 3 4 Combat Bots Only 4 | . 3 2 . 3 3 4 Max Kills in Single Turn 2 | . 1 1 . 1 1 2 Gunslinging . | . . . . . . . Exploded 2 | . . . . . . 2 Melee . | . . . . . . . Uniques/NPCs Destroyed . | . . . . . . . Combat | -11 -10 -10 -10 -9 -8 -8 -------- Run | Scr Mat Min Exi Min Mat Sto Damage Taken 2201 | . 354 36 . 71 267 1473 Core 684 | . 88 . . 6 36 554 Absorbed by Shields . | . . . . . . . Core Remaining (%) 81 | 100 . . . 62 . . Volleys Fired 84 | . 44 3 . 5 10 22 Largest 3 | . 2 2 . 2 3 3 Hottest 204 | . 136 136 . 136 204 204 Shots Fired 186 | . 88 6 . 10 30 52 Gun 84 | . 84 . . . . . Cannon 101 | . 4 6 . 10 30 51 Launcher 1 | . . . . . . 1 Special . | . . . . . . . Kinetic 42 | . 42 . . . . . Thermal 143 | . 46 6 . 10 30 51 Explosive 1 | . . . . . . 1 Electromagnetic . | . . . . . . . Robot Hit Streak 10 | . 9 10 . 2 7 6 Robot Miss Streak 5 | . 5 . . 1 3 2 Penetration Max . | . . . . . . . Secondary Targets . | . . . . . . . Shots Hit Robots 119 | . 57 4 . 5 16 37 Core Hits 56 | . 28 3 . 4 6 15 Critical Kills 2 | . . . . . 1 1 Critical Parts Destroyed . | . . . . . . . Critical Strikes 3 | . 1 . . . 1 1 Burn 1 | . 1 . . . . . Meltdown 2 | . . . . . 1 1 Melee Attacks 9 | . . . . . . 9 Impact . | . . . . . . . Slashing 9 | . . . . . . 9 Piercing . | . . . . . . . Sneak Attacks 3 | . . . . . . 3 Combat Hostiles . | . . . . . . . Follow-up Attacks . | . . . . . . . Damage Inflicted 2264 | . 644 92 . 142 333 1053 Guns 594 | . 594 . . . . . Cannons 1184 | . . 81 . 102 326 675 Explosions 107 | . . . . . . 107 Melee 269 | . . . . . . 269 Ramming 110 | . 50 11 . 40 7 2 Kinetic 232 | . 232 . . . . . Thermal 1546 | . 362 81 . 102 326 675 Explosive 107 | . . . . . . 107 Electromagnetic . | . . . . . . . Impact . | . . . . . . . Slashing 269 | . . . . . . 269 Piercing . | . . . . . . . Highest Corruption 5 | . . . . . . 5 Average Corruption 4 | . . . . . . 4 Corruption Purged . | . . . . . . . Corruption Blocked . | . . . . . . . Effects 4 | . . . . . . 4 Message Errors 1 | . . . . . . 1 Matter Fused 2 | . . . . . . 2 Heat Flow Errors 1 | . . . . . . 1 Overload Shots . | . . . . . . . Overflow Damage 89 | . . . . . 5 84 Projectiles 5 | . . . . . 5 . Explosions . | . . . . . . . Melee 84 | . . . . . . 84 Knockbacks 1 | . . 1 . . . . Impact 1 | . . 1 . . . . Kinetic . | . . . . . . . Secondary . | . . . . . . . Self-Inflicted Damage 45 | . . . . . . 45 Shots 1 | . . . . . . 1 Rammed 17 | . 6 2 . 7 1 1 Targets Rammed 20 | . 7 2 . 9 1 1 Kicked 1 | . 1 . . . . . Crushed 2 | . . . . 2 . . Highest Temperature 757 | . 256 162 . 405 351 757 Average Temperature 195 | . 77 72 . 205 104 349 Received Heat Transfer 465 | . 225 6 . . 9 225 Effects 58 | . . . . 1 . 57 Shutdowns 4 | . . . . . . 4 Energy Bleed 3 | . . . . . . 3 Interference 14 | . . . . . . 14 Matter Decay 3 | . . . . . . 3 Short Circuit 2 | . . . . . . 2 Damage (minor) 7 | . . . . 1 . 6 Damage (major) 21 | . . . . . . 21 Damage (core) 4 | . . . . . . 4 Siege Activations . | . . . . . . . Robots Corrupted . | . . . . . . . Combat Hostiles . | . . . . . . . Parts Fried . | . . . . . . . Impact Corruptions . | . . . . . . . Robots Melted 2 | . . . . . 1 1 Combat Hostiles 2 | . . . . . 1 1 Parts Melted 7 | . 1 . . 1 3 2 Heat Transferred 3293 | . 1147 148 . 185 592 1221 Parts Sabotaged . | . . . . . . . Parts Stolen . | . . . . . . . Parts Stripped . | . . . . . . . Power Chain Reactions . | . . . . . . . Missiles Intercepted . | . . . . . . . Alert | -11 -10 -10 -10 -9 -8 -8 ------- Run | Scr Mat Min Exi Min Mat Sto Peak Influence 202 | . 152 85 . 70 158 202 Initial 66 | . . . . . 1 66 Average 51 | . 72 12 . 28 65 75 Maximum Alert Level 1 | . . . . . . 1 Low Security (%) 97 | 100 100 100 . 100 100 85 Level 1 2 | . . . . . . 14 Level 2 . | . . . . . . . Level 3 . | . . . . . . . Level 4 . | . . . . . . . Level 5 . | . . . . . . . High Security . | . . . . . . . Max Security . | . . . . . . . Squads Dispatched 3 | . 2 . . . . 1 Investigation 1 | . 1 . . . . . Extermination . | . . . . . . . Reinforcement 2 | . 1 . . . . 1 Assault . | . . . . . . . Garrison . | . . . . . . . Intercept . | . . . . . . . Searches Triggered . | . . . . . . . Construction Impeded 1 | . . . . . . 1 Haulers Reinforced . | . . . . . . . Active Scanning Responses . | . . . . . . . Cargo Convoy Interrupts . | . . . . . . . Stealth | -11 -10 -10 -10 -9 -8 -8 --------- Run | Scr Mat Min Exi Min Mat Sto Distress Signals 1 | . . . . . 1 . Communications Jammed . | . . . . . . . Distress Signals . | . . . . . . . Times Spotted 43 | . 14 4 . 2 12 11 Peak Tracking Total 4 | . 4 3 . 2 3 4 Tactical Retreats 3 | . . 1 . . 1 1 Traps | -11 -10 -10 -10 -9 -8 -8 ------- Run | Scr Mat Min Exi Min Mat Sto Traps Triggered 3 | . 2 . . . . 1 Indirectly . | . . . . . . . Trap Hack Attempts . | . . . . . . . Triggered . | . . . . . . . Disarmed . | . . . . . . . Reprogrammed . | . . . . . . . Reused . | . . . . . . . Traps Extracted . | . . . . . . . Installed . | . . . . . . . Triggered . | . . . . . . . Machines | -11 -10 -10 -10 -9 -8 -8 ---------- Run | Scr Mat Min Exi Min Mat Sto Machines Disabled 3 | . 1 . . . 1 1 Max in Single Turn 1 | . 1 . . . 1 1 Machines Sabotaged . | . . . . . . . Garrisons Compromised . | . . . . . . . Overloaded Fab Kills . | . . . . . . . Hacking | -11 -10 -10 -10 -9 -8 -8 --------- Run | Scr Mat Min Exi Min Mat Sto Machines Accessed 12 | . 5 1 3 . 2 1 Terminals 8 | . 4 1 . . 2 1 Fabricators . | . . . . . . . Repair Stations . | . . . . . . . Recycling Units 1 | . 1 . . . . . Scanalyzers . | . . . . . . . Garrison Access . | . . . . . . . Total Hacks 17 | . 7 3 4 . 2 1 Successful 14 | . 5 2 4 . 2 1 Failed 3 | . 2 1 . . . . Catastrophic . | . . . . . . . Database Lockouts . | . . . . . . . Manual 2 | . . . 1 . . 1 Terminals 10 | . 4 3 . . 2 1 Fabricators . | . . . . . . . Repair Stations . | . . . . . . . Recycling Units 3 | . 3 . . . . . Scanalyzers . | . . . . . . . Garrison Access . | . . . . . . . Terminal Hacks 13 | . 4 2 4 . 2 1 Record 6 | . . 2 4 . . . Prototype ID Bank 2 | . 1 . . . 1 . Branch Access Points 1 | . 1 . . . . . Unreport Threat 1 | . . . . . . 1 Transport Status 1 | . 1 . . . . . Hauler Manifests 2 | . 1 . . . 1 . Fabricator Hacks . | . . . . . . . Repair Station Hacks . | . . . . . . . Recycling Unit Hacks 1 | . 1 . . . . . Retrieve Components 1 | . 1 . . . . . Scanalyzer . | . . . . . . . Garrison Access Hacks . | . . . . . . . Unauthorized Hacks . | . . . . . . . Terminals . | . . . . . . . Fabricators . | . . . . . . . Repair Stations . | . . . . . . . Recycling Units . | . . . . . . . Scanalyzers . | . . . . . . . Garrison Access . | . . . . . . . Data Cores Recovered . | . . . . . . . Used . | . . . . . . . Hacking Detections 2 | . 1 1 . . . . Full Trace Events 1 | . 1 . . . . . Feedback Events . | . . . . . . . Feedback Blocked . | . . . . . . . Robot Schematics Acquired . | . . . . . . . Robots Built . | . . . . . . . Authchips . | . . . . . . . Time . | . . . . . . . Total Robot Build Rating . | . . . . . . . Part Schematics Acquired . | . . . . . . . Parts Built . | . . . . . . . Authchips . | . . . . . . . Time . | . . . . . . . Total Part Build Rating . | . . . . . . . Parts Repaired . | . . . . . . . Time . | . . . . . . . Parts Recycled . | . . . . . . . Recycled Matter . | . . . . . . . Retrieved Matter . | . . . . . . . Retrieved Components 2 | . 2 . . . . . Parts Scanalyzed . | . . . . . . . Part Schematics Acquired . | . . . . . . . Parts Damaged . | . . . . . . . Bothacking | -11 -10 -10 -10 -9 -8 -8 ------------ Run | Scr Mat Min Exi Min Mat Sto Used RIF Installer . | . . . . . . . Robots Hacked . | . . . . . . . Non-combat . | . . . . . . . Combat . | . . . . . . . Robot Hacks Applied . | . . . . . . . Relay Couplers Released . | . . . . . . . Fabnet Peak Effective % . | . . . . . . . Robots Rewired . | . . . . . . . Allies Hacked . | . . . . . . . Hacks Repelled . | . . . . . . . Allies | -11 -10 -10 -10 -9 -8 -8 -------- Run | Scr Mat Min Exi Min Mat Sto Total Allies 2 | . . . . 2 . . Largest Group 2 | . . . . 2 2 . Highest-Rated Group 43 | . . . . 43 43 . Highest-Rated Ally 31 | . . . . 31 31 . Total Orders . | . . . . . . . Ally Attacks 17 | . . . . . 17 . Total Damage 230 | . . . . . 230 . Kills 3 | . . . . . 3 . Allies Corrupted . | . . . . . . . Allies Melted . | . . . . . . . Intel | -11 -10 -10 -10 -9 -8 -8 ------- Run | Scr Mat Min Exi Min Mat Sto Robot Analysis Total . | . . . . . . . Derelict Logs Recovered 3 | . . 2 . 1 . . Drone Launches . | . . . . . . . Drone Recoveries . | . . . . . . . Exploration | -11 -10 -10 -10 -9 -8 -8 ------------- Run | Scr Mat Min Exi Min Mat Sto Turns Passed 5280 | 74 984 530 1305 993 766 628 Spaces Moved 2653 | 53 536 321 666 399 352 326 Core 5 | 4 . . . . . 1 Treads 2320 | . 428 321 666 399 352 154 Legs 226 | 49 108 . . . . 69 Wheels . | . . . . . . . Hover . | . . . . . . . Flight 102 | . . . . . . 102 Fastest Speed 29 | 50 120 160 160 240 160 29 Average Speed 172 | 114 151 160 191 240 160 117 Slowest Speed 400 | 120 160 160 240 240 160 400 Overloaded Moves . | . . . . . . . Propulsion Burnouts . | . . . . . . . Robots Hopped . | . . . . . . . Cave-ins Triggered 1 | . . . . . . 1 Exploration Rate (%) 50 | 3 63 69 93 71 27 29 Regions Visited 6 Branch Regions 4 Pre-discovered Areas 3 | . . 3 . . . . Known Exits Taken 3 | . 1 1 . . 1 . Unknown Exits Taken 3 | 1 . . 1 1 . . Scrap Searched 2 | . . . . 2 . . Spaces Dug 3 | . . . . . . 3 Terrain Destroyed 11 | . . . . . . 11 Melee 3 | . . . . . . 3 Projectile . | . . . . . . . AOE 8 | . . . . . . 8 Terrain Rammed . | . . . . . . . Walls Destroyed . | . . . . . . . Machines Disabled . | . . . . . . . Actions | -11 -10 -10 -10 -9 -8 -8 --------- Run | Scr Mat Min Exi Min Mat Sto Total 3176 | 62 622 331 699 414 533 515 Wait 277 | 1 4 2 22 . 147 101 Move 2647 | 52 535 320 665 398 351 326 Hop . | . . . . . . . Pick Up 37 | 2 12 2 2 1 7 11 Fast Attach 24 | 6 5 . 3 . . 10 Attach 10 | . . . . . 6 4 Detach 13 | . 3 . 3 . 1 6 Swap 20 | 1 5 . . . 4 10 Drop 35 | . 7 2 4 1 6 15 Fire 84 | . 44 3 . 5 10 22 Melee 9 | . . . . . . 9 Ram . | . . . . . . . Kick 1 | . 1 . . . . . Crush 19 | . 6 2 . 9 1 1 Escape Stasis . | . . . . . . . Rewire . | . . . . . . . Trap . | . . . . . . . Miscellaneous . | . . . . . . . Route ------- -11/Scrapyard -10/Materials (discovered 3 exits: *Mat / *Min x2) -10/Mines (discovered 3 exits: *Mat x2 / *Exi) -10/Exiles -9/Mines -8/Materials -8/Storage History --------- Turn | Location | Event 10 | -11/Scrapyard | Discovered new exit (range 15) 75 | -11/Scrapyard | Entered Materials 75 | -10/Materials | Discovered new exit (range 8) 242 | -10/Materials | Identified exit to Mines 306 | -10/Materials | Build established: Mutant 453 | -10/Materials | Discovered new exit (range 14) 499 | -10/Materials | Identified exit to Materials 1059 | -10/Materials | Entered Mines 1060 | -10/Mines | Learned location of Storage (-8) 1143 | -10/Mines | Discovered exit to Materials (range 6) 1167 | -10/Mines | Discovered exit to Materials (range 6) 1410 | -10/Mines | Found a damaged Exp. Sensor Array with a note attached 1413 | -10/Mines | Found Prototype Device 1526 | -10/Mines | Found a hidden stash of uninstalled traps 1581 | -10/Mines | Deemed a non-threat by the Exiles lab entrance 1582 | -10/Mines | Discovered new exit (range 5) 1587 | -10/Mines | Identified exit to Exiles 1589 | -10/Mines | Entered Exiles 1628 | -10/Exiles | Met 8R-AWN 1657 | -10/Exiles | Met EX-HEX 1777 | -10/Exiles | Met EX-DEC 1806 | -10/Exiles | Visited The Gauntlet 2105 | -10/Exiles | Met EX-BIN 2132 | -10/Exiles | Aligned with FarCom system 2134 | -10/Exiles | Given EX-Vault access code 2215 | -10/Exiles | Opened EX-Vault 2234 | -10/Exiles | Found Prototype Device 2234 | -10/Exiles | Identified Cloak of Protection 2238 | -10/Exiles | Found Prototype Device 2238 | -10/Exiles | Identified Trap Reconfigurator 2323 | -10/Exiles | Warned to stay clear of 0b10 Research branches 2587 | -10/Exiles | Discovered new exit (range 10) 2894 | -10/Exiles | Left Exiles lab with Cloak of Protection 2894 | -10/Exiles | Entered Mines 3017 | -9/Mines | Received a Rocket Launcher from a helpful Derelict 3495 | -9/Mines | Discovered new exit (range 6) 3753 | -9/Mines | Assembled infested the area 3758 | -9/Mines | Assisted by a Guerilla fighting off Assembled 3887 | -9/Mines | Entered Materials 3887 | -8/Materials | Accompanied by 2 allies 3887 | -8/Materials | Evolved 4 slots: Propulsion x1, Utility x2, Weapon x1 3888 | -8/Materials | Identified exit to Storage 3889 | -8/Materials | Identified Exp. Sensor Array 3892 | -8/Materials | Led the pair of lost Derelicts to an unsafe place 4207 | -8/Materials | Build established: Skirmisher 4653 | -8/Materials | Entered Storage 5017 | -8/Storage | Core integrity fell below 50% 5038 | -8/Storage | Core integrity fell below 20% 5076 | -8/Storage | Lost 6 parts (1n4u1w) 5282 | -8/Storage | Crushed by falling debris 5282 | -8/Storage | Smashed by cave-in Last Messages --------------- 05240_ Sneak attack on U-05 Engineer. 05240_ U-05 Engineer destroyed. 05242_ Acquired 19 matter. 05249_ |MP QE1Q6SRDHY|WHUKUH8W 05250_ Storage Shell breached. 05254_ Acquired Prototype Energy Gun. 05254_ Identified Hvy. Particle Gun. 05256_ Dropped Particle Cannon. 05256_ Acquired Adv. Beam Cannon. 05270_ Sneak attack on U-05 Engineer. 05270_ Destroyed Welding Torch. 05270_ U-05 Engineer destroyed. 05273_ System corrupted: Matter fused (-9). 05273_ Acquired 19 matter. 05282_ The unstable cave ceiling collapses. 05282_ Crushed by falling debris. 05282_ Lgt. Nuclear Core destroyed. 05282_ System corrupted by crushing effect (+4). 05282_ Melee Analysis Suite destroyed. 05282_ System corrupted by crushing effect (+3). Map ----- +----------------------------------------------------+ | ?????# #?????? #??????????????????????? | | ?????# #??##+#??#??????????????????????? | | ?????# #??? ####+#######????????????? | | ?????# #????? ?????????????? | | ?????# #??????? ???????????????? | | ?????# #????????? ?????????????????? | | ?????# #???????####/#####??????????????? | | ?????# #???????# #??????????????? | | ?????# #??????## #??????????????? | | ?????# #????? ## """"" #??????????????? | | ?????# #????? ## "=] #??????????????? | | ?????# #???? ## """"" #??????????????? | | ###### #???? ## """"" #??????????????? | | # # #??? ## "=[[ #??????????????? | | # # #??? ## """"" #??????????????? | | # # #?? ##!|= #??????????????? | | # # #?? ###+#######??????????????? | | # # ## #?#!#????????????????????? | | # # ##g #?#*#????????????????????? | | # *# !g #?#!##########???????????? | | # +! ## ###u## #!!==#???????????? | | # =### ##+##+## # " ==#???????????? | | ########+# # ! ==#???????????? | | #! % + + " = #???????????? | | # # ##### ##T#= ==#???????????? | | # * # #??#;@#######!== #???????????? | | # # #??## #?????######???????????? | | # = ]# #???###??????????????????????? | | # ]# #????????????????????????????? | | # + #????????????????????????????? | | # # #????????????????????????????? | | ########## ##???????????????????????????? | | ?????????# T#???????????????????????????? | | ?????????# ##???????????????????????????? | | ?????????""""????????????????????????????? | | ?????????????????????????????????????????? | | ?????????????????????????????????????????? | | ?????????????????????????????????????????? | | ?????????????????????????????????????????? | | ?????????????????????????????????????????? | | ?????????????????????????????????????????? | | | | | | | | | | | | | | | | | | | +----------------------------------------------------+ Best States ------------- Heat Dissipation 45 Energy Generation 16 Energy Capacity 290 Matter Stores 300 Matter Capacity 300 Sight Range 16 Robot Scan Range 20 Terrain Scan Density 10 Cloak Strength 5 Armor Coverage 300 Resistance: EM 15 Evasion (%) 64 Melee Accuracy 5 Recoil Reduction 3 Item Schematics ----------------- None Robot Schematics ------------------ None Fabricated ------------ Nothing Alien Tech Used ----------------- None Achievements -------------- None Challenges ------------ None Game ------ Seed MetafieldVortexBeam Manual? 0 Play Time 00:40:50 Cumulative 17.2 hours Start 2022.05.23 @ 16:52:56 End 2022.05.23 @ 17:32:05 Sessions 1 Manual Loads 0 Difficulty Rogue Special Mode None Game No. 24 Rogue 24 Adventurer 0 Explorer 0 Win Type - Total 0 Types 0/0/0/0/0/0/0/0/0 Lore% 14 Gallery% 31 Achievement% 21 Wizard Run 0 Options --------- ASCII 0 Keyboard 1 Movement Numpad Keybinds 0 Fullscreen 1 Font 24/Proggy Map View 76x50 Tactical HUD 1 Map Filters NONE Filters NONE Steam 1 RUN: 7a7a792e-f9bd-42a1-b45a-bdf8167a533b